bitfinex/quotes_SOLUSD_20240626
["timestamp","ask_amount","ask_price","bid_price","bid_amount"]
[1719366022588,271.2298,138.43,138.31,0.17]
[1719366022884,5.1684,138.46,138.31,0.17]
[1719366022885,7.2245,138.42,138.37,7.2266]
[1719366023181,7.2237,138.44,138.38,0.17]
[1719366023381,7.2228,138.45,138.38,18.2359]
[1719366023569,7.2236,138.44,138.38,18.2359]
[1719366023769,7.2239,138.43,138.38,25.4622]
[1719366023972,7.2235,138.44,138.38,25.4622]
[1719366025065,7.2252,138.41,138.37,16.4588]
[1719366025398,7.2261,138.39,138.37,16.4588]
[1719366025568,7.2265,138.38,138.36,6.6473]
[1719366025895,7.2277,138.36,138.33,15.6214]
[1719366026386,7.2271,138.37,138.33,15.6214]
[1719366027482,7.2266,138.38,138.33,15.6214]
[1719366027801,7.2266,138.38,138.33,22.8504]
[1719366028100,7.2266,138.38,138.33,15.6214]
[1719366028265,7.2275,138.36,138.33,15.6214]
[1719366028904,5.1684,138.43,138.32,6.2115]
[1719366029188,7.2286,138.34,138.29,21.6801]
[1719366029398,7.2286,138.34,138.29,28.911]
[1719366029573,7.2282,138.35,138.29,28.911]
[1719366029888,7.2268,138.38,138.32,7.2291]
[1719366030194,81.4637,138.42,138.32,18.0733]
[1719366030195,7.2273,138.37,138.32,18.0733]
[1719366030394,0.17,138.42,138.32,18.0733]
[1719366030693,7.2271,138.37,138.32,18.0733]
[1719366030995,7.2276,138.36,138.32,18.0733]
[1719366031376,7.2276,138.36,138.31,7.2297]
[1719366032292,81.4639,138.42,138.29,21.6801]
[1719366032491,7.2292,138.33,138.29,21.6801]
[1719366032700,20.0,138.41,138.26,18.081]
[1719366032701,7.2306,138.3,138.26,21.5366]
[1719366032995,7.2302,138.31,138.26,21.5366]
[1719366033184,7.2302,138.31,138.26,28.7689]
[1719366033566,7.2289,138.34,138.28,7.2312]
[1719366033998,7.2281,138.35,138.29,18.0776]
[1719366034373,7.2281,138.35,138.3,7.2302]
[1719366034571,7.2285,138.34,138.29,25.3086]
[1719366034784,18.0672,138.38,138.28,0.17]
[1719366034988,18.0695,138.36,138.27,7.402]
[1719366035586,7.2299,138.32,138.27,7.402]
[1719366036109,18.0721,138.34,138.26,21.5366]
[1719366036394,0.34,138.37,138.23,18.0846]
[1719366036395,7.2322,138.27,138.23,6.1899]
[1719366036581,18.0748,138.32,138.23,6.1899]
[1719366036969,7.2317,138.28,138.23,13.4238]
[1719366037178,7.2312,138.29,138.24,7.2337]
[1719366038083,7.2299,138.32,138.27,7.2321]
[1719366038269,7.2301,138.31,138.26,7.2326]
[1719366038696,7.2301,138.31,138.25,18.083]
[1719366038997,7.2296,138.32,138.27,25.3122]
[1719366039191,7.83756856,138.37,138.23,58.8499]
[1719366039192,18.0689,138.36,138.26,7.4026]
[1719366039391,7.2292,138.33,138.26,0.17]
[1719366039590,20.0,138.35,138.26,18.2516]
[1719366039591,7.2296,138.32,138.26,18.2516]
[1719366039896,7.2306,138.3,138.25,7.2331]
[1719366040200,18.0723,138.34,138.26,0.17]
[1719366040504,7.2301,138.31,138.26,7.2323]
[1719366040792,7.231,138.3,138.25,25.3156]
[1719366040997,7.2312,138.29,138.25,18.0824]
[1719366041197,20.0,138.35,138.23,6.1899]
[1719366041494,7.2332,138.26,138.23,6.1899]
[1719366041800,18.0772,138.3,138.23,6.1899]
[1719366041999,7.2322,138.27,138.23,6.1899]
[1719366042595,7.2318,138.28,138.23,13.4241]
[1719366042987,7.2322,138.27,138.23,6.1899]
[1719366043502,7.2328,138.26,138.23,6.1899]
[1719366043676,7.2333,138.25,138.23,6.1899]
[1719366044002,7.2338,138.24,138.19,13.3745]
[1719366044297,7.2347,138.23,138.19,6.1382]
[1719366045001,7.2339,138.24,138.19,6.1382]
[1719366045300,7.2339,138.24,138.19,13.3743]
[1719366045875,18.08,138.28,138.19,13.3745]
[1719366046079,7.2334,138.25,138.19,13.3745]
[1719366046279,18.0759,138.31,138.22,7.2348]
[1719366046480,7.2326,138.27,138.21,7.2351]
[1719366046687,7.2326,138.27,138.22,7.2348]
[1719366047288,0.34,138.3,138.21,7.2353]
[1719366047289,7.2327,138.26,138.21,7.2353]
[1719366047484,7.2327,138.26,138.2,18.0893]
[1719366047691,0.34,138.3,138.19,6.1382]
[1719366047692,7.2342,138.24,138.19,6.1382]
[1719366047976,18.0787,138.29,138.19,6.1382]
[1719366048200,7.2335,138.25,138.2,7.2358]
[1719366048401,7.2335,138.25,138.19,31.4645]
[1719366049110,7.2339,138.24,138.19,31.4645]
[1719366050004,7.2334,138.25,138.19,31.4645]
[1719366050197,7.2334,138.25,138.2,7.2357]
[1719366050786,0.34,138.3,138.21,18.088]
[1719366050993,7.2325,138.27,138.22,7.2346]
[1719366051197,7.2328,138.26,138.21,25.3232]
[1719366051387,7.2332,138.25,138.21,18.088]
[1719366051707,18.4169,138.3,138.21,18.088]
[1719366051708,7.2327,138.27,138.21,25.3231]
[1719366051907,7.2329,138.26,138.21,25.3231]
[1719366052080,7.2333,138.25,138.21,18.088]
[1719366053206,7.2338,138.24,138.19,13.3744]
[1719366053503,18.0819,138.26,138.19,6.1382]
[1719366053702,7.2349,138.22,138.19,6.1382]
[1719366054012,7.2345,138.23,138.19,6.1382]
[1719366054682,18.0819,138.26,138.19,6.1382]
[1719366054683,7.2352,138.22,138.19,6.1382]
[1719366055097,18.0791,138.29,138.19,24.2286]
[1719366055302,7.2332,138.26,138.21,7.2352]
[1719366055511,7.2333,138.25,138.2,7.2353]
[1719366055681,7.2333,138.25,138.19,24.2286]
[1719366055682,7.2338,138.24,138.19,31.4648]
[1719366056282,20.0,138.28,138.21,18.0881]
[1719366056501,7.2325,138.27,138.22,7.2344]
[1719366056879,7.2309,138.3,138.25,7.2328]
[1719366057083,18.0711,138.35,138.25,18.0829]
[1719366057397,7.231,138.3,138.25,41.1266]
[1719366057599,13.50701118,138.36,138.27,24.6517]
[1719366057907,270.7854,138.37,138.29,25.3079]
[1719366057908,7.2287,138.34,138.29,25.3079]
[1719366058083,7.2281,138.35,138.29,25.3079]
[1719366058685,7.2285,138.34,138.29,25.3079]
[1719366058883,7.2285,138.34,138.29,18.0772]
[1719366059604,7.2303,138.31,138.27,6.5717]
[1719366059999,7.2307,138.3,138.27,6.5717]
[1719366060197,7.23,138.32,138.27,6.5717]
[1719366060394,173.36241287,138.4,138.27,6.5717]
[1719366060599,173.36241287,138.4,138.25,15.8106]
[1719366060600,36.1383,138.36,138.25,15.8106]
[1719366060795,7.2312,138.29,138.25,15.8106]
[1719366061006,18.0742,138.32,138.25,15.8106]
[1719366061407,7.2317,138.28,138.25,15.8106]
[1719366061791,0.17,138.33,138.23,6.1399]
[1719366061792,18.0773,138.3,138.23,6.1399]
[1719366062287,7.2323,138.27,138.23,6.1399]
[1719366062489,20.0,138.29,138.23,6.1399]
[1719366062697,7.2317,138.28,138.23,13.374]
[1719366062910,7.2307,138.3,138.23,24.2253]
[1719366063318,7.2307,138.3,138.25,7.2331]
[1719366063490,18.076,138.31,138.23,6.1399]
[1719366063695,0.34,138.3,138.21,16.3709]
[1719366063895,65.34,138.3,138.21,16.3709]
[1719366064095,7.2347,138.23,138.2,6.588]
[1719366064491,7.2339,138.24,138.2,6.588]
[1719366064688,7.2332,138.26,138.2,24.6776]
[1719366064904,88.5851,138.3,138.2,31.9129]
[1719366065110,18.0796,138.28,138.2,6.588]
[1719366065310,7.2341,138.24,138.2,6.588]
[1719366065514,7.2344,138.23,138.2,6.588]
[1719366066593,7.2359,138.2,138.18,0.8634495]
[1719366066815,20.17,138.27,138.18,0.8634495]
[1719366067009,7.2364,138.19,138.18,0.8634495]
[1719366067719,7.236,138.2,138.18,0.8634495]
[1719366067921,7.2353,138.22,138.18,0.8634495]
[1719366068325,18.0841,138.25,138.18,0.8634495]
[1719366068501,7.235,138.22,138.18,0.8634495]
[1719366068702,18.0841,138.25,138.18,0.8634495]
[1719366068909,7.2349,138.22,138.18,0.8634495]
[1719366069804,7.2358,138.21,138.18,0.8634495]
[1719366069999,7.2349,138.22,138.18,0.8634495]
[1719366070209,18.0801,138.28,138.19,0.17]
[1719366070522,18.0801,138.28,138.19,25.4965]
[1719366070523,7.2337,138.25,138.19,25.4965]
[1719366071019,7.2338,138.24,138.19,25.4965]
[1719366071213,7.2343,138.23,138.18,8.1002495]
[1719366071410,7.236,138.2,138.18,0.8634495]
[1719366071612,18.0847,138.24,138.18,0.8634495]
[1719366071807,7.236,138.2,138.18,0.8634495]
[1719366072008,38.0813,138.27,138.18,0.8634495]
[1719366072215,7.2347,138.23,138.18,8.1002495]
[1719366072521,7.2331,138.26,138.2,7.2354]
[1719366072721,20.0,138.27,138.18,18.9554495]
[1719366072927,18.0801,138.28,138.18,18.9554495]
[1719366073223,7.56209924,138.31,138.26,7.2323]
[1719366073394,7.2296,138.33,138.27,7.2321]
[1719366073603,20.0,138.32,138.25,18.0822]
[1719366073916,18.0708,138.35,138.27,7.2317]
[1719366074105,20.0,138.34,138.27,7.2317]
[1719366074600,7.2286,138.34,138.28,0.17]
[1719366074800,7.2284,138.35,138.3,6.2368]
[1719366075000,7.55688668,138.37,138.3,6.2368]
[1719366075001,662.166,138.39,138.3,13.467]
[1719366075298,662.166,138.39,138.31,7.23]
[1719366075299,7.2274,138.37,138.31,7.23]
[1719366076508,7.2275,138.36,138.31,7.23]
[1719366076722,18.0618,138.42,138.32,0.17]
[1719366076900,7.2263,138.39,138.33,22.5575]
[1719366077100,18.0618,138.42,138.33,22.5575]
[1719366077402,7.2275,138.36,138.33,15.3285]
[1719366077633,7.2268,138.38,138.33,15.3285]
[1719366077925,7.2279,138.36,138.33,15.3285]
[1719366078124,100.0,138.42,138.3,6.2368]
[1719366078301,7.229,138.34,138.3,6.2368]
[1719366079196,38.0628,138.41,138.3,6.2368]
[1719366079420,7.2261,138.39,138.33,7.229]
[1719366079627,398.87266787,138.44,138.3,6.2368]
[1719366079852,7.2284,138.35,138.3,6.2368]
[1719366080010,18.0648,138.4,138.3,6.2368]
[1719366080326,7.2286,138.34,138.3,6.2368]
[1719366080629,18.0627,138.41,138.31,7.2296]
[1719366080804,7.2272,138.37,138.31,25.3048]
[1719366081227,20.0,138.4,138.31,18.0748]
[1719366081671,20.0,138.4,138.31,25.3046]
[1719366081940,20.0,138.4,138.33,7.229]
[1719366081941,7.2268,138.38,138.33,7.229]
[1719366082098,18.0627,138.41,138.35,7.228]
[1719366082099,7.2252,138.41,138.35,7.228]
[1719366082723,7.2255,138.4,138.34,0.17]
[1719366082913,7.2265,138.38,138.34,0.17]
[1719366083111,7.227,138.37,138.33,18.0722]
[1719366083325,7.2265,138.38,138.34,0.17]
[1719366083903,7.227,138.37,138.33,18.0722]
[1719366084114,7.2276,138.36,138.3,24.3124]
[1719366084319,7.2281,138.35,138.3,24.3124]
[1719366084607,7.2282,138.35,138.3,6.2368]
[1719366084802,18.0627,138.41,138.31,18.0748]
[1719366085015,20.0,138.4,138.31,18.0748]
[1719366085629,7.2281,138.35,138.31,18.0748]
[1719366085839,7.2285,138.34,138.3,6.2368]
[1719366086036,7.2281,138.35,138.3,6.2368]
[1719366086226,7.2281,138.35,138.3,13.4673]
[1719366086646,7.2286,138.34,138.3,6.2368]
[1719366087818,20.0,138.33,138.26,6.4803]
[1719366088041,7.2299,138.32,138.27,7.2322]
[1719366088429,18.0706,138.35,138.26,6.4803]
[1719366088631,20.0,138.34,138.26,6.4803]
[1719366088828,7.2307,138.3,138.26,6.4803]
[1719366089033,20.0,138.34,138.26,6.4803]
[1719366089232,7.2305,138.31,138.26,13.7128]
[1719366089636,7.2308,138.3,138.26,6.4803]
[1719366090329,7.2302,138.31,138.26,13.7129]
[1719366091242,7.2296,138.32,138.27,7.232]
[1719366091420,7.2286,138.34,138.29,7.231]
[1719366091620,7.2286,138.34,138.29,25.3081]
[1719366092426,7.2296,138.32,138.27,7.402]
[1719366093230,7.2291,138.33,138.28,7.2315]
[1719366093439,7.229,138.34,138.29,7.231]
[1719366093825,7.229,138.34,138.3,0.51776697]
[1719366094326,18.069,138.36,138.28,18.0787]
[1719366094629,7.2291,138.33,138.28,25.3102]
[1719366094840,255.2,138.44,138.31,6.1236]
[1719366095039,255.2,138.44,138.39,13.3494]
[1719366095333,255.2,138.44,138.39,6.1236]
[1719366095531,255.2,138.44,138.4,7.3953]
[1719366096327,255.2,138.44,138.41,7.2248]
[1719366096690,255.2,138.44,138.4,0.17]
[1719366097023,255.2,138.44,138.4,7.2253]
[1719366097251,255.2,138.44,138.39,24.1876]
[1719366097423,262.4237,138.44,138.39,24.1876]
[1719366097840,262.4237,138.44,138.39,6.1236]
[1719366097841,7.225,138.41,138.39,6.1236]
[1719366098058,7.225,138.41,138.37,15.1737]
[1719366098654,7.2254,138.4,138.37,15.1737]
[1719366099128,273.2589,138.44,138.37,15.1737]
[1719366099328,20.17,138.43,138.36,6.5063]
[1719366099550,7.2259,138.4,138.36,6.5063]
[1719366099738,20.17,138.43,138.36,7.2274]
[1719366099944,18.2315,138.42,138.33,15.9411]
[1719366100151,7.2271,138.37,138.33,15.9411]
[1719366100557,7.2271,138.37,138.32,24.4592]
[1719366100885,7.2276,138.36,138.32,6.3857]
[1719366101781,7.2271,138.37,138.32,6.3857]
[1719366101993,7.2271,138.37,138.32,13.6152]
[1719366102281,7.2265,138.38,138.32,13.6152]
[1719366103888,7.2271,138.37,138.32,13.6152]
[1719366104563,136.2939,138.42,138.29,21.7294]
[1719366104874,65.17,138.41,138.29,21.7294]
[1719366105075,0.17,138.4,138.29,21.7294]
[1719366105270,7.229,138.33,138.29,21.7294]
[1719366105465,7.2287,138.34,138.29,28.9605]
[1719366105688,18.0665,138.38,138.3,7.2305]
[1719366105689,7.2281,138.35,138.3,7.2305]
[1719366107484,7.2275,138.36,138.3,18.0761]
[1719366107696,38.0631,138.41,138.3,18.0761]
[1719366108003,7.227,138.37,138.32,7.2292]
[1719366108376,38.0631,138.41,138.33,7.2286]
[1719366108576,7.227,138.37,138.32,25.3021]
[1719366108773,7.2271,138.37,138.32,25.3019]
[1719366109086,7.2275,138.36,138.31,7.2299]
[1719366109275,7.2269,138.38,138.29,58.0535]
[1719366109475,38.0631,138.41,138.32,7.2294]
[1719366109476,7.227,138.37,138.32,7.2294]
[1719366109672,7.2271,138.37,138.32,7.2294]
[1719366110478,7.2275,138.36,138.32,7.2294]
[1719366111207,38.0631,138.41,138.32,7.2294]
[1719366111208,7.2271,138.37,138.32,7.2294]
[1719366112104,7.2266,138.38,138.33,7.229]
[1719366113091,7.227,138.37,138.32,7.2294]
[1719366114883,7.227,138.37,138.33,7.229]
[1719366115086,7.2264,138.39,138.33,7.229]
[1719366115302,38.0631,138.41,138.34,7.2284]
[1719366115503,7.2262,138.39,138.34,7.2284]
[1719366115690,7.55386197,138.43,138.36,6.5713]
[1719366116000,7.2245,138.42,138.37,7.2269]
[1719366117388,7.225,138.41,138.36,29.7716]
[1719366120119,7.225,138.41,138.37,7.2269]
[1719366120297,18.0551,138.47,138.37,18.0671]
[1719366120501,7.2246,138.42,138.37,25.294]
[1719366120725,7.225,138.41,138.36,29.7717]
[1719366121386,18.0605,138.43,138.36,22.5443]
[1719366121593,7.2263,138.39,138.36,6.5713]
[1719366121817,7.2265,138.38,138.36,6.5713]
[1719366122192,7.2261,138.39,138.36,6.5713]
[1719366123620,7.2245,138.42,138.37,7.2266]
[1719366125204,7.2232,138.45,138.4,7.2252]
[1719366126202,7.2229,138.45,138.4,40.7764]
[1719366127914,7.2229,138.45,138.41,7.2248]
[1719366128221,7.2225,138.46,138.41,7.2248]
[1719366129023,255.2,138.49,138.4,15.4879]
[1719366129319,36.0954,138.53,138.4,15.4879]
[1719366129320,7.2197,138.51,138.46,25.2775]
[1719366129517,255.2,138.54,138.46,18.0554]
[1719366129518,20.0,138.53,138.46,18.0554]
[1719366129722,7.2203,138.5,138.46,18.0554]
[1719366130029,7.2203,138.5,138.46,25.2776]
[1719366130194,7.2198,138.51,138.46,25.2776]
[1719366130394,7.2193,138.52,138.47,7.2217]
[1719366130713,7.2196,138.51,138.46,25.2776]
[1719366130903,255.2,138.54,138.43,18.0589]
[1719366131110,255.2,138.54,138.41,6.4553]
[1719366131111,20.0,138.53,138.41,6.2853]
[1719366131328,0.17,138.52,138.41,6.2853]
[1719366131520,18.3883,138.52,138.41,24.3468]
[1719366131699,18.3883,138.52,138.41,6.1153]
[1719366131700,20.0,138.51,138.41,6.1153]
[1719366132015,18.0534,138.48,138.41,6.1153]
[1719366132226,7.2237,138.44,138.41,6.1153]
[1719366133020,7.2229,138.45,138.41,6.1153]
[1719366133222,18.0534,138.48,138.41,6.1153]
[1719366133427,7.2227,138.46,138.41,13.3401]
[1719366133934,7.2228,138.45,138.41,6.1153]
[1719366135098,7.2224,138.46,138.41,13.3401]
[1719366135933,7.2228,138.45,138.41,6.1153]
[1719366136926,7.2224,138.46,138.41,13.34]
[1719366137222,20.0,138.51,138.41,6.1153]
[1719366137426,20.0,138.51,138.44,18.058]
[1719366137630,7.2205,138.5,138.45,7.2227]
[1719366137923,7.2207,138.49,138.44,25.2812]
[1719366138109,7.2212,138.48,138.44,18.058]
[1719366138311,7.2212,138.48,138.41,24.1765]
[1719366139021,7.2212,138.48,138.42,7.2239]
[1719366139223,18.0512,138.5,138.41,31.4013]
[1719366139417,18.0512,138.5,138.41,24.1765]
[1719366139418,7.2228,138.45,138.41,24.1765]
[1719366140101,7.2234,138.44,138.41,6.1153]
[1719366140326,7.223,138.45,138.41,6.1153]
[1719366140698,18.0585,138.44,138.36,6.2992]
[1719366140917,7.227,138.37,138.36,6.2992]
[1719366141127,7.227,138.37,138.35,16.3338]
[1719366141309,7.2265,138.38,138.35,16.3338]
[1719366141807,7.2245,138.42,138.37,7.2269]
[1719366142324,37.9657,138.47,138.38,7.2263]
[1719366142507,20.17,138.45,138.38,7.2263]
[1719366142834,7.2247,138.42,138.37,7.2268]
[1719366143008,18.0589,138.44,138.35,16.3338]
[1719366143212,0.17,138.43,138.35,16.3338]
[1719366143509,45.17,138.43,138.35,16.3338]
[1719366143708,20.17,138.42,138.35,16.3338]
[1719366144122,7.2266,138.38,138.35,16.3338]
[1719366144706,7.2256,138.4,138.35,16.3338]
[1719366144912,38.2313,138.42,138.35,16.3338]
[1719366145302,7.2264,138.39,138.35,16.3338]
[1719366147037,38.0613,138.42,138.35,16.3338]
[1719366147238,7.2255,138.4,138.35,23.5618]
[1719366147429,7.2249,138.41,138.36,7.2273]
[1719366147741,20.0,138.42,138.35,16.3338]
[1719366147917,36.1141,138.45,138.35,16.3338]
[1719366147918,7.2265,138.38,138.35,16.3338]
[1719366148238,7.225,138.41,138.36,7.2275]
[1719366148435,7.2254,138.4,138.35,23.5614]
[1719366149272,7.2259,138.39,138.35,16.3338]
[1719366150020,7.2265,138.38,138.35,16.3338]
[1719366150314,7.2255,138.4,138.35,16.3338]
[1719366150516,7.2259,138.39,138.35,16.3338]
[1719366150809,7.2256,138.4,138.35,23.5617]
[1719366151012,7.2254,138.4,138.35,23.5617]
[1719366151327,7.2244,138.42,138.38,7.2263]
[1719366151717,7.2244,138.42,138.37,7.2269]
[1719366152116,7.2249,138.41,138.37,7.2269]
[1719366152434,7.2254,138.4,138.36,25.2954]
[1719366153723,7.226,138.39,138.35,16.3338]
[1719366154028,7.2271,138.37,138.33,24.3712]
[1719366154748,7.2271,138.37,138.33,31.6002]
[1719366154943,20.0,138.44,138.33,31.6002]
[1719366154944,7.2276,138.36,138.33,6.2992]
[1719366156043,7.2271,138.37,138.33,6.2992]
[1719366157043,7.2275,138.36,138.33,6.2992]
[1719366157245,18.0668,138.38,138.31,16.3041]
[1719366157535,7.2288,138.34,138.31,16.3041]
[1719366158244,20.17,138.37,138.31,16.3041]
[1719366158548,7.2287,138.34,138.31,16.3041]
[1719366159343,7.2282,138.35,138.31,16.3041]
[1719366159539,20.0,138.38,138.31,34.3787]
[1719366159758,7.227,138.37,138.31,34.3787]
[1719366159915,7.227,138.37,138.32,7.3991]
[1719366160118,7.2275,138.36,138.31,41.6086]
[1719366161955,82.30800007,138.43,138.33,18.0724]
[1719366162132,20.17,138.42,138.33,18.0724]
[1719366162335,7.227,138.37,138.33,18.0724]
[1719366163234,25.61735469,138.46,138.35,36.1395]
[1719366163440,20.0,138.45,138.36,0.54365254]
[1719366163636,20.0,138.46,138.39,18.0644]
[1719366163939,7.2226,138.46,138.39,24.6735]
[1719366164147,20.80364262,138.47,138.39,24.6735]
[1719366164352,20.80364262,138.47,138.39,6.6091]
[1719366164659,7.2239,138.43,138.39,6.6091]
[1719366164969,7.2245,138.42,138.39,6.6091]
[1719366165134,7.223,138.45,138.39,13.8346]
[1719366165456,7.2235,138.44,138.39,13.8346]
[1719366166740,7.2235,138.44,138.39,6.6091]
[1719366167551,18.057,138.46,138.39,6.6091]
[1719366167854,7.2245,138.42,138.39,6.6091]
[1719366170539,7.225,138.41,138.39,6.6091]
[1719366172358,20.17,138.45,138.39,6.6091]
[1719366172570,20.0,138.45,138.39,6.6091]
[1719366173573,7.2236,138.44,138.39,13.8349]
[1719366173867,7.2239,138.43,138.39,13.8349]
[1719366174033,7.2239,138.43,138.39,6.6091]
[1719366175040,7.2239,138.43,138.39,13.8349]
[1719366175372,7.2239,138.43,138.39,6.6091]
[1719366175569,18.057,138.46,138.39,6.6091]
[1719366175874,7.2238,138.43,138.39,6.6091]
[1719366176167,18.057,138.46,138.41,7.2248]
[1719366176168,7.2223,138.46,138.41,7.2248]
[1719366176346,7.2219,138.47,138.42,7.2242]
[1719366176543,277.27132549,138.51,138.4,0.17]
[1719366176544,255.2,138.51,138.4,0.17]
[1719366176770,7.2207,138.49,138.44,7.2229]
[1719366176955,7.2208,138.49,138.44,7.2231]
[1719366177467,7.2202,138.5,138.45,7.2226]
[1719366177646,7.2202,138.5,138.46,6.4622]
[1719366177975,7.2202,138.5,138.46,13.6844]
[1719366178552,6.2209,138.49,138.46,6.4622]
[1719366178862,7.2217,138.47,138.43,18.2288]
[1719366179051,7.2217,138.47,138.43,18.0588]
[1719366179673,7.2217,138.47,138.42,13.2911]
[1719366180361,7.2213,138.48,138.43,7.2237]
[1719366180571,7.2223,138.46,138.42,24.1274]
[1719366180755,0.17,138.5,138.42,24.1274]
[1719366180935,0.17,138.5,138.43,7.2236]
[1719366180936,7.2216,138.48,138.43,7.2236]
[1719366181545,7.2218,138.47,138.42,31.3516]
[1719366181746,273.25,138.51,138.42,24.1274]
[1719366181943,20.0,138.5,138.43,7.2235]
[1719366182280,5.66944262,138.52,138.44,18.058]
[1719366182442,20.0,138.51,138.44,18.058]
[1719366182766,7.2205,138.5,138.45,7.2227]
[1719366182943,20.0,138.53,138.44,18.058]
[1719366183151,7.2205,138.5,138.45,7.2227]
[1719366184672,7.2218,138.47,138.42,6.0669]
[1719366184874,20.0,138.53,138.42,6.0669]
[1719366184875,7.2238,138.43,138.42,6.0669]
[1719366185174,7.2237,138.44,138.42,6.0669]
[1719366185378,18.056,138.46,138.38,23.1665]
[1719366185566,7.225,138.41,138.38,23.1665]
[1719366185779,7.2242,138.43,138.38,23.1665]
[1719366185959,15.055,138.48,138.38,23.1665]
[1719366186150,7.2233,138.45,138.39,18.0642]
[1719366186476,7.2234,138.44,138.39,18.0642]
[1719366187165,7.2233,138.44,138.39,25.2899]
[1719366187685,18.2228,138.49,138.39,18.0642]
[1719366187856,7.2231,138.45,138.4,7.2253]
[1719366188358,7.2233,138.44,138.39,25.2899]
[1719366189046,7.2229,138.45,138.4,7.2252]
[1719366189480,7.2233,138.44,138.39,25.29]
[1719366190550,7.2242,138.43,138.38,23.3365]
[1719366190746,18.0553,138.47,138.38,23.3365]
[1719366190957,15.492,138.44,138.34,22.0098]
[1719366191178,7.2273,138.37,138.34,22.0098]
[1719366191380,5.3384,138.43,138.34,6.5026]
[1719366191562,20.17,138.42,138.3,40.0855]
[1719366191876,7.228,138.35,138.3,47.3158]
[1719366192379,7.2275,138.36,138.31,7.2299]
[1719366194778,7.2271,138.37,138.32,7.2295]
[1719366195091,20.0,138.42,138.3,58.331]
[1719366195378,20.0,138.43,138.35,18.0692]
[1719366195761,7.226,138.39,138.35,18.0692]
[1719366196063,7.226,138.39,138.34,7.2284]
[1719366196377,7.2264,138.38,138.33,7.3988]
[1719366196577,7.227,138.37,138.33,0.17]
[1719366196783,7.227,138.37,138.33,7.229]
[1719366196997,18.0625,138.41,138.34,7.2285]
[1719366197483,7.2265,138.38,138.33,7.2289]
[1719366197779,7.227,138.37,138.32,25.3025]
[1719366198362,7.2275,138.36,138.32,25.3025]
[1719366198669,7.228,138.35,138.31,0.17]
[1719366199380,7.2296,138.32,138.3,6.5026]
[1719366199598,18.0704,138.35,138.27,15.4783]
[1719366199764,18.0704,138.35,138.27,22.7104]
[1719366199765,7.2297,138.32,138.27,22.7104]
[1719366200173,7.2292,138.33,138.28,7.2316]
[1719366200374,7.2301,138.31,138.27,15.4783]
[1719366200862,7.2279,138.36,138.31,7.23]
[1719366201393,7.227,138.37,138.32,7.2294]
[1719366201562,38.0603,138.43,138.34,23.5091]
[1719366201965,7.2262,138.39,138.34,23.5091]
[1719366202999,7.2265,138.38,138.34,16.2807]
[1719366203990,18.0603,138.43,138.34,16.2807]
[1719366204194,22.11084262,138.45,138.35,18.4095]
[1719366204195,5.66944262,138.45,138.35,18.4095]
[1719366204384,7.2251,138.41,138.36,7.2273]
[1719366204686,7.2251,138.41,138.36,7.2274]
[1719366204889,20.0,138.44,138.35,18.2395]
[1719366205065,5.66944262,138.45,138.38,7.2264]